lending/lending_fUSD_20250808
["ID","MTS","AMOUNT","RATE_DAILY","PERIOD"]
[377919914,1754613177070,-400.0,0.00023013,2]
[377919915,1754613177080,-595.92,0.00023013,2]
[377919916,1754613177089,-400.0,0.00023013,2]
[377919917,1754613177099,-1128.98,0.00023013,2]
[377919918,1754613177110,-1058.02,0.00023013,2]
[377919919,1754613177120,-467.91,0.00023013,2]
[377919920,1754613177131,-498.62,0.00023013,2]
[377919921,1754613177141,-460.25,0.00023013,2]
[377919922,1754613177151,-684.85,0.00023013,2]
[377919923,1754613177161,-400.0,0.00023013,2]
[377919924,1754613177171,-1822.08,0.00023013,2]
[377919925,1754613177181,-834.5,0.00023013,2]
[377919926,1754613177191,-519.11,0.00023013,2]
[377919927,1754613177201,-400.0,0.00023013,2]
[377919928,1754613177211,-400.0,0.00023013,2]
[377919929,1754613177221,-431.49,0.00023013,2]
[377919930,1754613177231,-400.0,0.00023013,2]
[377919931,1754613177242,-400.0,0.00023013,2]
[377919932,1754613177252,-756.51,0.00023013,2]
[377919933,1754613177262,-753.02,0.00023013,2]
[377919934,1754613177272,-400.0,0.00023013,2]
[377919935,1754613177282,-474.3,0.00023013,2]
[377919936,1754613177291,-400.0,0.00023013,2]
[377919937,1754613177301,-1312.14,0.00023013,2]
[377919938,1754613177311,-664.1,0.00023013,2]
[377919939,1754613177321,-400.0,0.00023013,2]
[377919940,1754613177331,-530.37,0.00023013,2]
[377919941,1754613177341,-723.03,0.00023013,2]
[377919942,1754613177351,-488.75,0.00023013,2]
[377919943,1754613177362,-753.14,0.00023013,2]
[377919944,1754613177372,-400.0,0.00023013,2]
[377919945,1754613177382,-481.93,0.00023013,2]
[377919946,1754613177392,-681.29,0.00023013,2]
[377919947,1754613177407,-1362.2,0.00023013,2]
[377919948,1754613177417,-1202.92,0.00023013,2]
[377919949,1754613177427,-400.0,0.00023013,2]
[377919950,1754613177437,-908.09,0.00023013,2]
[377919951,1754613177446,-400.0,0.00023013,2]
[377919952,1754613177456,-1356.82,0.00023013,2]
[377919953,1754613177466,-642.93,0.00023013,2]
[377919954,1754613177476,-558.14,0.00023013,2]
[377919955,1754613177486,-857.38,0.00023013,2]
[377919956,1754613177495,-600.87,0.00023013,2]
[377919957,1754613177505,-1113.28,0.00023013,2]
[377919958,1754613177515,-1063.89,0.00023013,2]
[377919959,1754613177525,-473.3,0.00023013,2]
[377919960,1754613177535,-400.0,0.00023013,2]
[377919961,1754613177553,-766.74,0.00023013,2]
[377919962,1754613177563,-702.23,0.00023013,2]
[377919963,1754613177573,-400.0,0.00023013,2]
[377919964,1754613177583,-697.81,0.00023013,2]
[377919965,1754613177592,-593.88,0.00023013,2]
[377919966,1754613177602,-835.59,0.00023013,2]
[377919967,1754613177611,-787.56,0.00023013,2]
[377919968,1754613177622,-1070.57,0.00023013,2]
[377919969,1754613177633,-565.06,0.00023013,2]
[377919970,1754613177643,-714.37,0.00023013,2]
[377919971,1754613177654,-805.74,0.00023013,2]
[377919972,1754613177663,-1013.85,0.00023013,2]
[377919973,1754613177674,-400.0,0.00023013,2]
[377919974,1754613177683,-400.0,0.00023013,2]
[377919975,1754613177693,-446.94,0.00023013,2]
[377919976,1754613177703,-400.0,0.00023013,2]
[377919977,1754613177713,-518.84,0.00023013,2]
[377919978,1754613177723,-634.1,0.00023013,2]
[377919979,1754613177733,-668.96,0.00023013,2]
[377919980,1754613177743,-997.03,0.00023013,2]
[377919981,1754613177753,-1310.15,0.00023013,2]
[377919982,1754613177763,-539.85,0.00023013,2]
[377919983,1754613177772,-823.13,0.00023013,2]
[377919984,1754613177782,-542.82,0.00023013,2]
[377919985,1754613177792,-602.12,0.00023013,2]
[377919986,1754613177802,-1520.38,0.00023013,2]
[377919987,1754613177813,-400.0,0.00023013,2]
[377919988,1754613177823,-1166.4,0.00023013,2]
[377919989,1754613177833,-677.81,0.00023013,2]
[377919990,1754613177843,-440.74,0.00023013,2]
[377919991,1754613177852,-400.0,0.00023013,2]
[377919992,1754613177862,-400.0,0.00023013,2]
[377919993,1754613177875,-400.0,0.00023013,2]
[377919994,1754613177885,-1322.15,0.00023013,2]
[377919995,1754613177894,-475.21327226,0.00023013,2]
[377919996,1754613177905,-217.4089596,0.00023013,2]
[377919997,1754613177916,-400.0,0.00023013,2]
[377919998,1754613177926,-439.53,0.00023013,2]
[377919999,1754613177936,-400.0,0.00023013,2]
[377920000,1754613177946,-729.31,0.00023013,2]
[377920001,1754613177956,-455.12,0.00023013,2]
[377920002,1754613177966,-1225.17,0.00023013,2]
[377920003,1754613177976,-1460.14,0.00023013,2]
[377920004,1754613177986,-400.0,0.00023013,2]
[377920005,1754613177996,-400.0,0.00023013,2]
[377920006,1754613178005,-535.87,0.00023013,2]
[377920007,1754613178015,-400.0,0.00023013,2]
[377920008,1754613178024,-965.56,0.00023013,2]
[377920009,1754613178034,-400.0,0.00023013,2]
[377920010,1754613178044,-400.0,0.00023013,2]
[377920011,1754613178053,-473.14,0.00023013,2]
[377920012,1754613178063,-1112.82,0.00023013,2]
[377920013,1754613178073,-400.0,0.00023013,2]
[377920014,1754613178082,-592.4,0.00023013,2]
[377920015,1754613178092,-1239.98,0.00023013,2]
[377920016,1754613178102,-400.0,0.00023013,2]
[377920017,1754613178111,-546.56,0.00023013,2]
[377920018,1754613178121,-412.93,0.00023013,2]
[377920019,1754613178130,-400.0,0.00023013,2]
[377920020,1754613178141,-1332.23,0.00023013,2]
[377920021,1754613178151,-1121.49,0.00023013,2]
[377920022,1754613178161,-867.66,0.00023013,2]
[377920023,1754613178171,-2373.45,0.00023013,2]
[377920024,1754613178181,-1921.83,0.00023013,2]
[377920025,1754613178190,-477.33,0.00023013,2]
[377920026,1754613178199,-400.0,0.00023013,2]
[377920027,1754613178209,-586.09,0.00023013,2]
[377920028,1754613178219,-434.62,0.00023013,2]
[377920029,1754613178229,-633.66,0.00023013,2]
[377920030,1754613178239,-449.74352107,0.00023013,2]
[377920031,1754613178249,-1031.22,0.00023013,2]
[377920032,1754613178259,-393.41089259,0.00023013,2]
[377920033,1754613178268,-591.29,0.00023013,2]
[377920034,1754613178278,-1239.8,0.00023013,2]
[377920035,1754613178287,-419.72,0.00023013,2]
[377920036,1754613178296,-433.91,0.00023013,2]
[377920037,1754613178306,-765.3,0.00023013,2]
[377920038,1754613178315,-1091.91,0.00023013,2]
[377920039,1754613178325,-718.67,0.00023013,2]
[377920040,1754613178335,-400.0,0.00023013,2]
[377920041,1754613178345,-942.73,0.00023013,2]
[377920042,1754613178354,-400.0,0.00023013,2]
[377920043,1754613178364,-655.59,0.00023013,2]
[377920044,1754613178373,-549.44,0.00023013,2]
[377920045,1754613178383,-706.48,0.00023013,2]
[377920046,1754613178392,-798.23,0.00023013,2]
[377920047,1754613178401,-1153.34,0.00023013,2]
[377920048,1754613178411,-1177.75,0.00023013,2]
[377920049,1754613178421,-549.94,0.00023013,2]
[377920050,1754613178430,-560.12,0.00023013,2]
[377920051,1754613178442,-819.45,0.00023013,2]
[377920052,1754613178451,-895.98,0.00023013,2]
[377920053,1754613178460,-472.38,0.00023013,2]
[377920054,1754613178470,-804.91,0.00023013,2]
[377920055,1754613178479,-638.56,0.00023013,2]
[377920056,1754613178488,-1258.89,0.00023013,2]
[377920057,1754613178498,-400.0,0.00023013,2]
[377920058,1754613178507,-593.81,0.00023013,2]
[377920059,1754613178517,-352.152162,0.00023013,2]
[377920060,1754613178527,-352.152162,0.00023013,2]
[377920061,1754613178537,-622.14,0.00023013,2]
[377920062,1754613178546,-1287.29,0.00023013,2]
[377920063,1754613178557,-1105.48,0.00023013,2]
[377920064,1754613178567,-1707.57,0.00023013,2]
[377920065,1754613178576,-1063.27,0.00023013,2]
[377920066,1754613178688,-1515.17,0.00023013,2]
[377920067,1754613178698,-1621.03,0.00023013,2]
[377920068,1754613178708,-420.834801,0.00023013,2]
[377920069,1754613178717,-400.0,0.00023013,2]
[377920070,1754613178727,-420.834801,0.00023013,2]
[377920071,1754613178736,-577.01,0.00023013,2]
[377920072,1754613178746,-400.0,0.00023013,2]
[377920073,1754613178755,-400.0,0.00023013,2]
[377920074,1754613178766,-400.0,0.00023013,2]
[377920075,1754613178776,-1622.23,0.00023013,2]
[377920076,1754613178786,-400.0,0.00023013,2]
[377920077,1754613178795,-1480.91,0.00023013,2]
[377920078,1754613178806,-877.01,0.00023013,2]
[377920079,1754613178816,-400.0,0.00023013,2]
[377920080,1754613178826,-981.54,0.00023013,2]
[377920081,1754613178835,-400.0,0.00023013,2]
[377920082,1754613178845,-400.0,0.00023013,2]
[377920083,1754613178855,-1390.26,0.00023013,2]
[377920084,1754613178865,-400.0,0.00023013,2]
[377920085,1754613178878,-1312.79,0.00023013,2]
[377920086,1754613178888,-1040.41,0.00023013,2]
[377920087,1754613178898,-447.12,0.00023013,2]
[377920088,1754613178908,-246.791616,0.00023013,2]
[377920089,1754613178917,-246.791616,0.00023013,2]
[377920090,1754613178927,-1460.09,0.00023013,2]
[377920091,1754613178937,-446.5,0.00023013,2]
[377920092,1754613178949,-783.24,0.00023013,2]
[377920093,1754613178959,-806.42,0.00023013,2]
[377920094,1754613178968,-680.12,0.00023013,2]
[377920095,1754613178978,-400.0,0.00023013,2]
[377920096,1754613178988,-998.91,0.00023013,2]
[377920097,1754613178997,-633.1,0.00023013,2]
[377920098,1754613179007,-400.0,0.00023013,2]
[377920099,1754613179017,-436.39,0.00023013,2]
[377920100,1754613179027,-803.71,0.00023013,2]
[377920101,1754613179036,-408.97,0.00023013,2]
[377920102,1754613179046,-1211.14,0.00023013,2]
[377920103,1754613179056,-832.28,0.00023013,2]
[377920104,1754613179065,-400.0,0.00023013,2]
[377920105,1754613179075,-634.61,0.00023013,2]
[377920106,1754613179085,-400.0,0.00023013,2]
[377920107,1754613179094,-1042.43,0.00023013,2]
[377920108,1754613179104,-411.96,0.00023013,2]
[377920109,1754613179113,-707.32,0.00023013,2]
[377920110,1754613179122,-455.66,0.00023013,2]
[377920111,1754613179132,-854.23,0.00023013,2]
[377920112,1754613179141,-9366.87,0.00023013,2]
[377920113,1754613179151,-484.41,0.00023013,2]
[377920114,1754613179161,-801.68,0.00023013,2]
[377920115,1754613179171,-1513.02,0.00023013,2]
[377920116,1754613179181,-447.08,0.00023013,2]
[377920117,1754613179191,-400.0,0.00023013,2]
[377920118,1754613179200,-400.0,0.00023013,2]
[377920119,1754613179210,-1785.26,0.00023013,2]
[377920120,1754613179220,-400.0,0.00023013,2]
[377920121,1754613179229,-1103.08,0.00023013,2]
[377920122,1754613179239,-1209.1,0.00023013,2]
[377920123,1754613179248,-400.0,0.00023013,2]
[377920124,1754613179257,-512.05,0.00023013,2]
[377920125,1754613179267,-837.98,0.00023013,2]
[377920126,1754613179276,-588.83,0.00023013,2]
[377920127,1754613179285,-467.43,0.00023013,2]
[377920128,1754613179295,-1005.96,0.00023013,2]
[377920129,1754613179305,-1338.39,0.00023013,2]
[377920130,1754613179314,-1973.33,0.00023013,2]
[377920131,1754613179323,-969.26,0.00023013,2]
[377920132,1754613179332,-602.9,0.00023013,2]
[377920133,1754613179342,-703.47,0.00023013,2]
[377920134,1754613179351,-1304.83,0.00023013,2]
[377920135,1754613179361,-2027.86,0.00023013,2]
[377920136,1754613179370,-688.65,0.00023013,2]
[377920137,1754613179379,-1312.78,0.00023013,2]
[377920138,1754613179389,-2100.2,0.00023013,2]
[377920139,1754613179398,-400.0,0.00023013,2]
[377920140,1754613179410,-1134.28,0.00023013,2]
[377920141,1754613179420,-1569.86,0.00023013,2]
[377920142,1754613179430,-1383.67,0.00023013,2]
[377920143,1754613179440,-529.24,0.00023013,2]
[377920144,1754613179449,-812.54,0.00023013,2]
[377920145,1754613179458,-871.51,0.00023013,2]
[377920146,1754613179468,-755.43,0.00023013,2]
[377920147,1754613179479,-801.5,0.00023013,2]
[377920148,1754613179489,-603.98,0.00023013,2]
[377920149,1754613179498,-1094.56,0.00023013,2]
[377920150,1754613179508,-1864.15,0.00023013,2]
[377920151,1754613179517,-744.46,0.00023013,2]
[377920152,1754613179526,-574.05,0.00023013,2]
[377920153,1754613179536,-1856.19,0.00023013,2]
[377920154,1754613179546,-400.0,0.00023013,2]
[377920155,1754613179555,-2819.61,0.00023013,2]
[377920156,1754613179564,-963.74,0.00023013,2]
[377920157,1754613179576,-400.0,0.00023013,2]
[377920158,1754613179586,-641.78,0.00023013,2]
[377920159,1754613179596,-400.0,0.00023013,2]
[377920160,1754613179606,-421.69,0.00023013,2]
[377920161,1754613179616,-711.52,0.00023013,2]
[377920162,1754613179626,-400.0,0.00023013,2]
[377920163,1754613179636,-1482.22,0.00023013,2]
[377920164,1754613179645,-1692.64,0.00023013,2]
[377920165,1754613179656,-1130.98,0.00023013,2]
[377920166,1754613179666,-400.0,0.00023013,2]
[377920167,1754613179676,-400.0,0.00023013,2]
[377920168,1754613179686,-9960.13,0.00023013,2]
[377920169,1754613179695,-561.73,0.00023013,2]
[377920170,1754613179705,-500.34,0.00023013,2]
[377920171,1754613179714,-1592.3,0.00023013,2]
[377920172,1754613179724,-606.66,0.00023013,2]
[377920173,1754613179734,-400.0,0.00023013,2]
[377920174,1754613179743,-546.64,0.00023013,2]
[377920175,1754613179753,-400.0,0.00023013,2]
[377920176,1754613179763,-2507.14,0.00023013,2]
[377920177,1754613179773,-1471.57,0.00023013,2]
[377920178,1754613179783,-1316.78,0.00023013,2]
[377920179,1754613179793,-1758.45,0.00023013,2]
[377920180,1754613179802,-1144.53,0.00023013,2]
[377920181,1754613179812,-1555.78,0.00023013,2]
[377920182,1754613179821,-1450.07,0.00023013,2]
[377920183,1754613179832,-567.89,0.00023013,2]
[377920184,1754613179842,-416.35,0.00023013,2]
[377920185,1754613179852,-2230.25,0.00023013,2]
[377920186,1754613179863,-973.9,0.00023013,2]
[377920187,1754613179875,-1577.14,0.00023013,2]
[377920188,1754613179885,-1658.19,0.00023013,2]
[377920189,1754613179895,-1949.39,0.00023013,2]
[377920190,1754613179905,-2189.36,0.00023013,2]
[377920191,1754613179916,-544.97,0.00023013,2]
[377920192,1754613179928,-400.0,0.00023013,2]
[377920193,1754613179937,-1736.77,0.00023013,2]
[377920194,1754613179949,-1506.04,0.00023013,2]
[377920195,1754613179959,-1668.74,0.00023013,2]
[377920196,1754613179969,-400.0,0.00023013,2]
[377920197,1754613179981,-723.41,0.00023013,2]
[377920198,1754613179991,-527.26,0.00023013,2]
[377920199,1754613180002,-1222.43,0.00023013,2]
[377920200,1754613180011,-2004.13,0.00023013,2]
[377920201,1754613180021,-1196.36,0.00023013,2]
[377920202,1754613180030,-444.47,0.00023013,2]
[377920203,1754613180040,-554.57,0.00023013,2]
[377920204,1754613180050,-1393.06,0.00023013,2]
[377920205,1754613180060,-1109.06,0.00023013,2]
[377920206,1754613180070,-624.86,0.00023013,2]
[377920207,1754613180079,-2031.25,0.00023013,2]
[377920208,1754613180091,-1290.07,0.00023013,2]
[377920209,1754613180101,-469.16,0.00023013,2]
[377920210,1754613180112,-2592.74,0.00023013,2]
[377920211,1754613180123,-1460.91,0.00023013,2]
[377920212,1754613180134,-2666.29,0.00023013,2]
[377920213,1754613180146,-2043.58,0.00023013,2]
[377920214,1754613180157,-1164.41,0.00023013,2]
[377920215,1754613180166,-1333.93,0.00023013,2]
[377920216,1754613180176,-694.8,0.00023013,2]
[377920217,1754613180185,-750.53,0.00023013,2]
[377920218,1754613180195,-631.92,0.00023013,2]
[377920219,1754613180206,-518.35,0.00023013,2]
[377920220,1754613180215,-1164.69,0.00023013,2]
[377920221,1754613180225,-2811.47,0.00023013,2]
[377920222,1754613180234,-465.25,0.00023013,2]
[377920223,1754613180244,-543.99,0.00023013,2]
[377920224,1754613180254,-1133.55,0.00023013,2]
[377920225,1754613180263,-680.98,0.00023013,2]
[377920226,1754613180274,-1818.01,0.00023013,2]
[377920227,1754613180283,-4407.12,0.00023013,2]
[377920228,1754613180294,-1288.12,0.00023013,2]
[377920229,1754613180304,-1275.65,0.00023013,2]
[377920230,1754613180314,-961.95,0.00023013,2]
[377920231,1754613180323,-1714.38,0.00023013,2]
[377920232,1754613180333,-1117.23,0.00023013,2]
[377920233,1754613180342,-453.21,0.00023013,2]
[377920234,1754613180352,-400.0,0.00023013,2]
[377920235,1754613180362,-879.97,0.00023013,2]
[377920236,1754613180371,-400.0,0.00023013,2]
[377920237,1754613180381,-1383.67,0.00023013,2]
[377920238,1754613180391,-633.58,0.00023013,2]
[377920239,1754613180401,-1989.79,0.00023013,2]
[377920240,1754613180416,-1604.94,0.00023013,2]
[377920241,1754613180426,-1105.6,0.00023013,2]
[377920242,1754613180435,-426.59,0.00023013,2]
[377920243,1754613180445,-400.0,0.00023013,2]
[377920244,1754613180454,-446.1,0.00023013,2]
[377920245,1754613180465,-1061.62,0.00023013,2]
[377920246,1754613180474,-2286.48,0.00023013,2]
[377920247,1754613180484,-608.07,0.00023013,2]
[377920248,1754613180493,-1419.58,0.00023013,2]
[377920249,1754613180504,-1349.34,0.00023013,2]
[377920250,1754613180513,-1214.9,0.00023013,2]
[377920251,1754613180522,-994.63,0.00023013,2]
[377920252,1754613180531,-2503.56,0.00023013,2]
[377920253,1754613180541,-668.68,0.00023013,2]
[377920254,1754613180551,-2034.76,0.00023013,2]
[377920255,1754613180560,-578.7,0.00023013,2]
[377920256,1754613180570,-1276.94,0.00023013,2]
[377920257,1754613180579,-400.0,0.00023013,2]
[377920258,1754613180589,-1646.26,0.00023013,2]
[377920259,1754613180599,-1889.62,0.00023013,2]
[377920260,1754613180608,-1501.0,0.00023013,2]
[377920261,1754613180617,-1528.92,0.00023013,2]
[377920262,1754613180627,-1025.64,0.00023013,2]
[377920263,1754613180637,-2128.65,0.00023013,2]
[377920264,1754613180647,-547.41,0.00023013,2]
[377920265,1754613180659,-1086.24,0.00023013,2]
[377920266,1754613180669,-400.0,0.00023013,2]
[377920267,1754613180680,-607.0,0.00023013,2]
[377920268,1754613180690,-1492.79,0.00023013,2]
[377920269,1754613180700,-1345.75,0.00023013,2]
[377920270,1754613180710,-420.32,0.00023013,2]
[377920271,1754613180721,-1120.37,0.00023013,2]
[377920272,1754613180732,-489.48,0.00023013,2]
[377920273,1754613180742,-1434.86,0.00023013,2]
[377920274,1754613180753,-400.0,0.00023013,2]
[377920275,1754613180764,-1951.53,0.00023013,2]
[377920276,1754613180775,-2325.69,0.00023013,2]
[377920277,1754613180785,-917.26,0.00023013,2]
[377920278,1754613180795,-1065.9,0.00023013,2]
[377920279,1754613180805,-1376.02,0.00023013,2]
[377920280,1754613180815,-1151.09,0.00023013,2]
[377920281,1754613180824,-400.0,0.00023013,2]
[377920282,1754613180834,-1350.78,0.00023013,2]
[377920283,1754613180843,-1657.63,0.00023013,2]
[377920284,1754613180853,-451.49,0.00023013,2]
[377920285,1754613180865,-1848.96,0.00023013,2]
[377920286,1754613180876,-1409.09,0.00023013,2]
[377920287,1754613180886,-400.0,0.00023013,2]
[377920288,1754613180896,-430.86992309,0.00023013,2]
[377920289,1754613180909,-400.0,0.00023013,2]
[377920290,1754613180918,-2074.91,0.00023013,2]
[377920291,1754613180928,-608.66,0.00023013,2]
[377920292,1754613180938,-1826.78,0.00023013,2]
[377920293,1754613180947,-400.0,0.00023013,2]
[377920294,1754613180956,-2222.15,0.00023013,2]
[377920295,1754613180966,-1400.02,0.00023013,2]
[377920296,1754613180975,-1588.59,0.00023013,2]
[377920297,1754613180984,-400.0,0.00023013,2]
[377920298,1754613180994,-1119.1,0.00023013,2]
[377920299,1754613181003,-880.06,0.00023013,2]
[377920300,1754613181012,-1481.84,0.00023013,2]
[377920301,1754613181022,-1688.74,0.00023013,2]
[377920302,1754613181031,-2547.87,0.00023013,2]
[377920303,1754613181041,-1888.11,0.00023013,2]
[377920304,1754613181051,-1345.58,0.00023013,2]
[377920305,1754613181061,-1803.23,0.00023013,2]
[377920306,1754613181070,-3068.61,0.00023013,2]
[377920307,1754613181080,-846.92,0.00023013,2]
[377920308,1754613181090,-3553.23,0.00023013,2]
[377920309,1754613181100,-1278.15,0.00023013,2]
[377920310,1754613181110,-2016.9,0.00023013,2]
[377920311,1754613181119,-2027.95,0.00023013,2]
[377920312,1754613181129,-1857.98,0.00023013,2]
[377920313,1754613181138,-1218.73,0.00023013,2]
[377920314,1754613181147,-2106.04,0.00023013,2]
[377920315,1754613181159,-1934.76,0.00023013,2]
[377920316,1754613181169,-633.24,0.00023013,2]
[377920317,1754613181179,-1410.86,0.00023013,2]
[377920318,1754613181188,-881.02,0.00023013,2]
[377920319,1754613181198,-1461.11,0.00023013,2]
[377920320,1754613181207,-2341.65,0.00023013,2]
[377920321,1754613181217,-400.0,0.00023013,2]
[377920322,1754613181229,-1720.55,0.00023013,2]
[377920323,1754613181238,-400.0,0.00023013,2]
[377920324,1754613181248,-1452.03,0.00023013,2]
[377920325,1754613181257,-1620.97,0.00023013,2]
[377920326,1754613181266,-496.68,0.00023013,2]
[377920327,1754613181276,-634.15,0.00023013,2]
[377920328,1754613181285,-2144.18,0.00023013,2]
[377920329,1754613181295,-1617.17,0.00023013,2]
[377920330,1754613181304,-558.88,0.00023013,2]
[377920331,1754613181313,-2107.78,0.00023013,2]
[377920332,1754613181323,-400.0,0.00023013,2]
[377920333,1754613181333,-749.36,0.00023013,2]
[377920334,1754613181342,-2615.62,0.00023013,2]
[377920335,1754613181352,-1657.01,0.00023013,2]
[377920336,1754613181361,-1646.42,0.00023013,2]
[377920337,1754613181371,-1193.46,0.00023013,2]
[377920338,1754613181380,-2388.63,0.00023013,2]
[377920339,1754613181390,-400.0,0.00023013,2]
[377920340,1754613181399,-1288.88,0.00023013,2]
[377920341,1754613181412,-2311.16,0.00023013,2]
[377920342,1754613181422,-2350.74,0.00023013,2]
[377920343,1754613181432,-1822.62,0.00023013,2]
[377920344,1754613181441,-612.27,0.00023013,2]
[377920345,1754613181451,-1810.11,0.00023013,2]
[377920346,1754613181460,-1537.46,0.00023013,2]
[377920347,1754613181470,-1369.16,0.00023013,2]
[377920348,1754613181480,-2136.59,0.00023013,2]
[377920349,1754613181489,-511.54,0.00023013,2]
[377920350,1754613181498,-482.95,0.00023013,2]
[377920351,1754613181507,-1248.2,0.00023013,2]
[377920352,1754613181517,-400.0,0.00023013,2]
[377920353,1754613181526,-1594.51,0.00023013,2]
[377920354,1754613181536,-483.64,0.00023013,2]
[377920355,1754613181545,-1678.28,0.00023013,2]
[377920356,1754613181554,-1205.01,0.00023013,2]
[377920357,1754613181563,-5670.63,0.00023013,2]
[377920358,1754613181574,-893.25,0.00023013,2]
[377920359,1754613181583,-845.84,0.00023013,2]
[377920360,1754613181592,-663.05,0.00023013,2]
[377920361,1754613181601,-1256.8,0.00023013,2]
[377920362,1754613181610,-2578.27,0.00023013,2]
[377920363,1754613181620,-1440.32,0.00023013,2]
[377920364,1754613181631,-738.95,0.00023013,2]
[377920365,1754613181640,-2047.45,0.00023013,2]
[377920366,1754613181650,-575.03,0.00023013,2]
[377920367,1754613181661,-2097.6,0.00023013,2]
[377920368,1754613181671,-500.07,0.00023013,2]
[377920369,1754613181680,-1244.17,0.00023013,2]
[377920370,1754613181690,-422.96,0.00023013,2]
[377920371,1754613181700,-759.15,0.00023013,2]
[377920372,1754613181710,-1757.73,0.00023013,2]
[377920373,1754613181719,-1316.97,0.00023013,2]
[377920374,1754613181728,-1321.01,0.00023013,2]
[377920375,1754613181738,-454.26,0.00023013,2]
[377920376,1754613181748,-3377.08,0.00023013,2]
[377920377,1754613181757,-1895.55,0.00023013,2]
[377920378,1754613181767,-1208.59,0.00023013,2]
[377920379,1754613181776,-1065.6,0.00023013,2]
[377920380,1754613181786,-671.01,0.00023013,2]
[377920381,1754613181796,-1206.78,0.00023013,2]
[377920382,1754613181805,-2465.13,0.00023013,2]
[377920383,1754613181815,-930.4,0.00023013,2]
[377920384,1754613181824,-2359.49,0.00023013,2]
[377920385,1754613181834,-916.62,0.00023013,2]
[377920386,1754613181844,-1926.69,0.00023013,2]
[377920387,1754613181854,-1712.73,0.00023013,2]
[377920388,1754613181864,-831.18,0.00023013,2]
[377920389,1754613181875,-458.34,0.00023013,2]
[377920390,1754613181886,-1982.51,0.00023013,2]
[377920391,1754613181895,-1225.08,0.00023013,2]
[377920392,1754613181908,-2026.14,0.00023013,2]
[377920393,1754613181919,-1138.89,0.00023013,2]
[377920394,1754613181928,-1259.99,0.00023013,2]
[377920395,1754613181938,-785.6,0.00023013,2]
[377920396,1754613181949,-821.3,0.00023013,2]
[377920397,1754613181960,-1205.32,0.00023013,2]
[377920398,1754613181970,-1835.44,0.00023013,2]
[377920399,1754613181980,-517.59,0.00023013,2]
[377920400,1754613181989,-1444.0,0.00023013,2]
[377920401,1754613181999,-2627.0,0.00023013,2]
[377920402,1754613182009,-720.69,0.00023013,2]
[377920403,1754613182019,-1785.88,0.00023013,2]
[377920404,1754613182028,-530.14336142,0.00023013,2]
[377920405,1754613182039,-1057.29,0.00023013,2]
[377920406,1754613182048,-594.32,0.00023013,2]
[377920407,1754613182058,-782.04,0.00023013,2]
[377920408,1754613182067,-737.52,0.00023013,2]
[377920409,1754613182077,-760.17,0.00023013,2]
[377920410,1754613182086,-1256.19,0.00023013,2]
[377920411,1754613182096,-1213.52,0.00023013,2]
[377920412,1754613182106,-1326.52,0.00023013,2]
[377920413,1754613182115,-400.0,0.00023013,2]